[Event "Titled Tuesday Blitz November 15 Early 2022"]
[White "Rosh Jain"]
[Black "Shuvalov, Evgenij"]
[WhiteFideId "25789465"]
[BlackFideId "4187237"]
[WhiteElo "2233"]
[BlackElo "2049"]
[Result "1-0"]
[Round "01"]
[TimeControl "180+1"]
[Date "2022.11.16"]
[WhiteClock "0:01:46"]
[BlackClock "0:01:14"]

1. e4 {[%clk 0:03:00]}  e6 {[%clk 0:02:58]} 2. d4 {[%clk 0:03:00]}  d5 {[%clk 0:02:58]} 3. Nc3 {[%clk 0:02:59]}  Bb4 {[%clk 0:02:58]} 4. exd5 {[%clk 0:02:59]}  exd5 {[%clk 0:02:57]} 5. Qf3 {[%clk 0:02:59]}  c6 {[%clk 0:02:55]} 6. Bd3 {[%clk 0:02:58]}  Qf6 {[%clk 0:02:54]} 7. Bf4 {[%clk 0:02:48]}  Qxd4 {[%clk 0:02:41]} 8. Ne2 {[%clk 0:02:48]}  Qf6 {[%clk 0:02:40]} 9. O-O-O {[%clk 0:02:47]}  g5 {[%clk 0:02:27]} 10. Qe3+ {[%clk 0:02:40]}  Be7 {[%clk 0:02:26]} 11. Be5 {[%clk 0:02:39]}  Qe6 {[%clk 0:02:21]} 12. Bxh8 {[%clk 0:02:39]}  Qxe3+ {[%clk 0:02:20]} 13. fxe3 {[%clk 0:02:39]}  f6 {[%clk 0:02:19]} 14. Bxh7 {[%clk 0:02:39]}  Nh6 {[%clk 0:02:19]} 15. Bg7 {[%clk 0:02:36]}  Ng4 {[%clk 0:02:19]} 16. Bg6+ {[%clk 0:02:34]}  Kd8 {[%clk 0:02:17]} 17. Rd2 {[%clk 0:02:22]}  Nd7 {[%clk 0:02:06]} 18. e4 {[%clk 0:02:21]}  Nde5 {[%clk 0:02:02]} 19. Bh5 {[%clk 0:02:20]}  Be6 {[%clk 0:01:43]} 20. exd5 {[%clk 0:02:19]}  cxd5 {[%clk 0:01:42]} 21. Nxd5 {[%clk 0:02:17]}  Bxd5 {[%clk 0:01:41]} 22. Rxd5+ {[%clk 0:02:16]}  Kc7 {[%clk 0:01:41]} 23. h3 {[%clk 0:02:12]}  Ne3 {[%clk 0:01:38]} 24. Rxe5 {[%clk 0:02:11]}  fxe5 {[%clk 0:01:38]} 25. Bxe5+ {[%clk 0:02:12]}  Bd6 {[%clk 0:01:38]} 26. Bxd6+ {[%clk 0:02:11]}  Kxd6 {[%clk 0:01:39]} 27. Nc3 {[%clk 0:02:08]}  Nxg2 {[%clk 0:01:36]} 28. Ne4+ {[%clk 0:02:08]}  Kc7 {[%clk 0:01:34]} 29. Nxg5 {[%clk 0:02:08]}  Rg8 {[%clk 0:01:29]} 30. Ne6+ {[%clk 0:02:07]}  Kb6 {[%clk 0:01:29]} 31. Kd2 {[%clk 0:02:00]}  Rh8 {[%clk 0:01:26]} 32. Bg4 {[%clk 0:01:59]}  Nh4 {[%clk 0:01:25]} 33. Ke3 {[%clk 0:01:57]}  Re8 {[%clk 0:01:24]} 34. Rd1 {[%clk 0:01:55]}  Kc6 {[%clk 0:01:20]} 35. Kf2 {[%clk 0:01:53]}  Re7 {[%clk 0:01:17]} 36. Nd4+ {[%clk 0:01:50]}  Kb6 {[%clk 0:01:16]} 37. Nf3 {[%clk 0:01:48]}  Ng6 {[%clk 0:01:14]} 38. Rd6+ {[%clk 0:01:46]} 1-0


[Site "https://www.chess.com"]

[Event "Titled Tuesday Blitz November 15 Early 2022"]
[White "Sailer, Mike"]
[Black "Goltseva, Ekaterina"]
[WhiteFideId "2012901"]
[BlackFideId "24173770"]
[WhiteElo "2109"]
[BlackElo "2200"]
[Result "0-1"]
[Round "01"]
[TimeControl "180+1"]
[Date "2022.11.16"]
[WhiteClock "0:00:21"]
[BlackClock "0:00:08"]

1. Nf3 {[%clk 0:03:00]}  d5 {[%clk 0:02:57]} 2. c4 {[%clk 0:02:58]}  dxc4 {[%clk 0:02:55]} 3. Qa4+ {[%clk 0:02:56]}  Nd7 {[%clk 0:02:51]} 4. Qxc4 {[%clk 0:02:54]}  Ngf6 {[%clk 0:02:46]} 5. g3 {[%clk 0:02:54]}  a6 {[%clk 0:02:39]} 6. Bg2 {[%clk 0:02:54]}  b5 {[%clk 0:02:38]} 7. Qc2 {[%clk 0:02:38]}  Bb7 {[%clk 0:02:31]} 8. O-O {[%clk 0:02:37]}  c5 {[%clk 0:02:24]} 9. Rd1 {[%clk 0:02:13]}  Rc8 {[%clk 0:02:13]} 10. b3 {[%clk 0:02:13]}  e6 {[%clk 0:02:02]} 11. Bb2 {[%clk 0:02:13]}  Be7 {[%clk 0:02:00]} 12. a4 {[%clk 0:02:11]}  O-O {[%clk 0:01:59]} 13. axb5 {[%clk 0:02:11]}  axb5 {[%clk 0:01:55]} 14. Nc3 {[%clk 0:02:02]}  Qb6 {[%clk 0:01:49]} 15. Ra2 {[%clk 0:01:53]}  c4 {[%clk 0:01:42]} 16. bxc4 {[%clk 0:01:53]}  bxc4 {[%clk 0:01:40]} 17. Rb1 {[%clk 0:01:41]}  Ng4 {[%clk 0:01:35]} 18. Nd1 {[%clk 0:01:37]}  Qb3 {[%clk 0:01:19]} 19. Bd4 {[%clk 0:01:21]}  Qxc2 {[%clk 0:01:16]} 20. Rxc2 {[%clk 0:01:20]}  Be4 {[%clk 0:01:16]} 21. d3 {[%clk 0:01:15]}  cxd3 {[%clk 0:01:16]} 22. Rxc8 {[%clk 0:01:15]}  Rxc8 {[%clk 0:01:12]} 23. exd3 {[%clk 0:01:11]}  Bxd3 {[%clk 0:01:11]} 24. Ra1 {[%clk 0:01:08]}  h6 {[%clk 0:00:52]} 25. h3 {[%clk 0:01:02]}  Ngf6 {[%clk 0:00:52]} 26. Ne3 {[%clk 0:01:00]}  Bd6 {[%clk 0:00:46]} 27. Rd1 {[%clk 0:00:40]}  Be2 {[%clk 0:00:46]} 28. Re1 {[%clk 0:00:41]}  Ba6 {[%clk 0:00:40]} 29. Ra1 {[%clk 0:00:41]}  Bb7 {[%clk 0:00:37]} 30. Ne1 {[%clk 0:00:41]}  Bxg2 {[%clk 0:00:36]} 31. Kxg2 {[%clk 0:00:39]}  e5 {[%clk 0:00:37]} 32. Bb2 {[%clk 0:00:36]}  Rb8 {[%clk 0:00:36]} 33. Ba3 {[%clk 0:00:35]}  Ra8 {[%clk 0:00:35]} 34. Bb2 {[%clk 0:00:36]}  Rb8 {[%clk 0:00:36]} 35. Ba3 {[%clk 0:00:36]}  Bxa3 {[%clk 0:00:36]} 36. Rxa3 {[%clk 0:00:36]}  Rb2 {[%clk 0:00:37]} 37. Nd3 {[%clk 0:00:35]}  Rb1 {[%clk 0:00:31]} 38. Ra5 {[%clk 0:00:34]}  e4 {[%clk 0:00:30]} 39. Nc5 {[%clk 0:00:29]}  Ne5 {[%clk 0:00:24]} 40. Ra4 {[%clk 0:00:27]}  Nf3 {[%clk 0:00:22]} 41. Nf1 {[%clk 0:00:26]}  Ne1+ {[%clk 0:00:20]} 42. Kh2 {[%clk 0:00:24]}  Rb2 {[%clk 0:00:19]} 43. Kg1 {[%clk 0:00:24]}  Nf3+ {[%clk 0:00:11]} 44. Kg2 {[%clk 0:00:24]}  Ne1+ {[%clk 0:00:10]} 45. Kg1 {[%clk 0:00:24]}  Nd3 {[%clk 0:00:08]} 46. Nxe4 {[%clk 0:00:24]}  Nxe4 {[%clk 0:00:08]} 47. Rxe4 {[%clk 0:00:24]}  Nxf2 {[%clk 0:00:08]} 48. h4 {[%clk 0:00:21]}  Nxe4 {[%clk 0:00:08]} 0-1


[Site "https://www.chess.com"]

[Event "Titled Tuesday Blitz November 15 Early 2022"]
[White "Salman, Pavel"]
[Black "Savic, Miroslav"]
[WhiteFideId "24153753"]
[BlackFideId "14508494"]
[WhiteElo "2187"]
[BlackElo "2209"]
[Result "1-0"]
[Round "01"]
[TimeControl "180+1"]
[Date "2022.11.16"]
[WhiteClock "0:00:37"]
[BlackClock "0:00:59"]

1. d4 {[%clk 0:02:59]}  Nf6 {[%clk 0:02:58]} 2. Nc3 {[%clk 0:02:59]}  e6 {[%clk 0:02:59]} 3. Bf4 {[%clk 0:02:53]}  Bb4 {[%clk 0:02:58]} 4. Qd3 {[%clk 0:02:51]}  Bxc3+ {[%clk 0:02:50]} 5. bxc3 {[%clk 0:02:50]}  c5 {[%clk 0:02:46]} 6. Nf3 {[%clk 0:02:48]}  Qa5 {[%clk 0:02:39]} 7. Bd6 {[%clk 0:02:38]}  cxd4 {[%clk 0:02:36]} 8. Nxd4 {[%clk 0:02:33]}  a6 {[%clk 0:02:24]} 9. e4 {[%clk 0:02:30]}  Nc6 {[%clk 0:02:22]} 10. Nxc6 {[%clk 0:02:26]}  dxc6 {[%clk 0:02:13]} 11. Be2 {[%clk 0:02:17]}  Nxe4 {[%clk 0:02:10]} 12. Bb4 {[%clk 0:02:17]}  Qd5 {[%clk 0:02:09]} 13. O-O {[%clk 0:02:09]}  Qxd3 {[%clk 0:02:08]} 14. Bxd3 {[%clk 0:02:04]}  Nf6 {[%clk 0:02:07]} 15. Rad1 {[%clk 0:02:04]}  Nd5 {[%clk 0:02:06]} 16. Ba3 {[%clk 0:01:52]}  Nxc3 {[%clk 0:02:04]} 17. Rd2 {[%clk 0:01:52]}  Nb5 {[%clk 0:01:52]} 18. Bxb5 {[%clk 0:01:38]}  axb5 {[%clk 0:01:51]} 19. Rfd1 {[%clk 0:01:39]}  Rxa3 {[%clk 0:01:48]} 20. Rd8+ {[%clk 0:01:38]}  Ke7 {[%clk 0:01:47]} 21. Rxh8 {[%clk 0:01:38]}  Bd7 {[%clk 0:01:45]} 22. Rb8 {[%clk 0:01:37]}  Ra7 {[%clk 0:01:39]} 23. c3 {[%clk 0:01:32]}  e5 {[%clk 0:01:39]} 24. h3 {[%clk 0:01:26]}  Be6 {[%clk 0:01:39]} 25. a3 {[%clk 0:01:14]}  Bd5 {[%clk 0:01:38]} 26. Kh2 {[%clk 0:01:06]}  g6 {[%clk 0:01:35]} 27. f3 {[%clk 0:01:05]}  h5 {[%clk 0:01:35]} 28. h4 {[%clk 0:01:05]}  Rxa3 {[%clk 0:01:31]} 29. Rxb7+ {[%clk 0:01:05]}  Ke6 {[%clk 0:01:31]} 30. Rc1 {[%clk 0:01:03]}  Ra2 {[%clk 0:01:29]} 31. Kg3 {[%clk 0:01:03]}  f5 {[%clk 0:01:26]} 32. Rb8 {[%clk 0:00:56]}  f4+ {[%clk 0:01:24]} 33. Kh3 {[%clk 0:00:55]}  Kf6 {[%clk 0:01:23]} 34. Rf8+ {[%clk 0:00:54]}  Ke7 {[%clk 0:01:24]} 35. Rb8 {[%clk 0:00:50]}  Be6+ {[%clk 0:01:21]} 36. Kh2 {[%clk 0:00:50]}  Bd5 {[%clk 0:01:21]} 37. Kg1 {[%clk 0:00:50]}  Kf6 {[%clk 0:01:12]} 38. Rf8+ {[%clk 0:00:44]}  Ke7 {[%clk 0:01:10]} 39. Rb8 {[%clk 0:00:44]}  Rb2 {[%clk 0:01:06]} 40. c4 {[%clk 0:00:41]}  Bxc4 {[%clk 0:01:03]} 41. Rxc4 {[%clk 0:00:40]}  Rxg2+ {[%clk 0:00:59]} 42. Kxg2 {[%clk 0:00:39]}  bxc4 {[%clk 0:01:00]} 43. Kf2 {[%clk 0:00:37]}  Kd6 {[%clk 0:01:00]} 44. Ke2 {[%clk 0:00:37]}  Kc5 {[%clk 0:01:01]} 45. Rg8 {[%clk 0:00:37]}  Kd4 {[%clk 0:00:59]} 46. Rxg6 {[%clk 0:00:37]}  c3 {[%clk 0:01:00]} 47. Rxc6 {[%clk 0:00:37]}  e4 {[%clk 0:01:00]} 48. fxe4 {[%clk 0:00:37]}  Kxe4 {[%clk 0:00:58]} 49. Rxc3 {[%clk 0:00:37]}  Kf5 {[%clk 0:00:59]} 50. Kf3 {[%clk 0:00:37]} 1-0


[Site "https://www.chess.com"]

[Event "Titled Tuesday Blitz November 15 Early 2022"]
[White "Samunenkov, Ihor"]
[Black "Kuznetsov, Mikhail"]
[WhiteFideId "14187086"]
[BlackFideId "4117190"]
[WhiteElo "2441"]
[BlackElo "1981"]
[Result "1-0"]
[Round "01"]
[TimeControl "180+1"]
[Date "2022.11.16"]
[WhiteClock "0:00:02"]
[BlackClock "0:00:01"]

1. d4 {[%clk 0:02:59]}  Nf6 {[%clk 0:02:58]} 2. c4 {[%clk 0:02:59]}  g6 {[%clk 0:02:59]} 3. Nc3 {[%clk 0:02:59]}  d5 {[%clk 0:02:58]} 4. cxd5 {[%clk 0:02:57]}  Nxd5 {[%clk 0:02:59]} 5. Bd2 {[%clk 0:02:58]}  Bg7 {[%clk 0:02:58]} 6. e4 {[%clk 0:02:58]}  Nb6 {[%clk 0:02:58]} 7. Be3 {[%clk 0:02:57]}  O-O {[%clk 0:02:57]} 8. Be2 {[%clk 0:02:56]}  Nc6 {[%clk 0:02:53]} 9. Nf3 {[%clk 0:02:13]}  f5 {[%clk 0:02:47]} 10. Qb3+ {[%clk 0:01:58]}  Kh8 {[%clk 0:02:43]} 11. exf5 {[%clk 0:01:53]}  Bxf5 {[%clk 0:02:40]} 12. Rd1 {[%clk 0:01:44]}  Qd6 {[%clk 0:02:08]} 13. O-O {[%clk 0:01:36]}  Rad8 {[%clk 0:02:03]} 14. d5 {[%clk 0:01:33]}  Ne5 {[%clk 0:01:51]} 15. Nxe5 {[%clk 0:00:59]}  Bxe5 {[%clk 0:01:47]} 16. f4 {[%clk 0:00:59]}  Bg7 {[%clk 0:01:43]} 17. Bf3 {[%clk 0:00:58]}  Qd7 {[%clk 0:01:11]} 18. h3 {[%clk 0:00:55]}  h5 {[%clk 0:01:04]} 19. a4 {[%clk 0:00:45]}  a5 {[%clk 0:00:58]} 20. Bxb6 {[%clk 0:00:42]}  cxb6 {[%clk 0:00:59]} 21. Qxb6 {[%clk 0:00:43]}  Bc2 {[%clk 0:00:47]} 22. Rd2 {[%clk 0:00:37]}  Rxf4 {[%clk 0:00:45]} 23. Kh1 {[%clk 0:00:21]}  Bxa4 {[%clk 0:00:24]} 24. Qxg6 {[%clk 0:00:15]}  h4 {[%clk 0:00:13]} 25. d6 {[%clk 0:00:13]}  e6 {[%clk 0:00:07]} 26. Qh5+ {[%clk 0:00:12]}  Kg8 {[%clk 0:00:07]} 27. Qxa5 {[%clk 0:00:12]}  Bb3 {[%clk 0:00:05]} 28. Qg5 {[%clk 0:00:09]}  Rdf8 {[%clk 0:00:03]} 29. Re1 {[%clk 0:00:05]}  R8f5 {[%clk 0:00:02]} 30. Qe7 {[%clk 0:00:03]}  Rf7 {[%clk 0:00:01]} 31. Qxd7 {[%clk 0:00:02]}  Rxd7 {[%clk 0:00:01]} 32. Ne4 {[%clk 0:00:03]}  Bd5 {[%clk 0:00:01]} 33. Nc5 {[%clk 0:00:03]}  Rxd6 {[%clk 0:00:02]} 34. Nxe6 {[%clk 0:00:02]}  Rxe6 {[%clk 0:00:01]} 35. Bxd5 {[%clk 0:00:02]} 1-0


[Site "https://www.chess.com"]

[Event "Titled Tuesday Blitz November 15 Early 2022"]
[White "Sanal, Vahap"]
[Black "Papayan, Oleg"]
[WhiteFideId "6300545"]
[BlackFideId "4193911"]
[WhiteElo "2574"]
[BlackElo "2153"]
[Result "1-0"]
[Round "01"]
[TimeControl "180+1"]
[Date "2022.11.15"]
[WhiteClock "0:01:39"]
[BlackClock "0:00:19"]

1. Nf3 {[%clk 0:02:56]}  Nf6 {[%clk 0:02:59]} 2. g3 {[%clk 0:02:56]}  c5 {[%clk 0:02:59]} 3. c4 {[%clk 0:02:54]}  e6 {[%clk 0:02:58]} 4. Bg2 {[%clk 0:02:54]}  d5 {[%clk 0:02:58]} 5. cxd5 {[%clk 0:02:54]}  exd5 {[%clk 0:02:53]} 6. O-O {[%clk 0:02:54]}  d4 {[%clk 0:02:53]} 7. e3 {[%clk 0:02:53]}  dxe3 {[%clk 0:02:49]} 8. dxe3 {[%clk 0:02:45]}  Qxd1 {[%clk 0:02:50]} 9. Rxd1 {[%clk 0:02:45]}  Nc6 {[%clk 0:02:50]} 10. Nc3 {[%clk 0:02:46]}  a6 {[%clk 0:02:48]} 11. e4 {[%clk 0:02:40]}  Bg4 {[%clk 0:02:43]} 12. h3 {[%clk 0:02:33]}  Bxf3 {[%clk 0:02:40]} 13. Bxf3 {[%clk 0:02:34]}  Nd4 {[%clk 0:02:39]} 14. Bg2 {[%clk 0:02:32]}  O-O-O {[%clk 0:02:34]} 15. Bf4 {[%clk 0:02:24]}  Be7 {[%clk 0:02:12]} 16. Kf1 {[%clk 0:02:19]}  Nh5 {[%clk 0:01:32]} 17. Bd2 {[%clk 0:02:02]}  Rhe8 {[%clk 0:01:18]} 18. Nd5 {[%clk 0:01:55]}  Nf6 {[%clk 0:01:09]} 19. Ba5 {[%clk 0:01:49]}  Rxd5 {[%clk 0:00:30]} 20. exd5 {[%clk 0:01:47]}  Bd8 {[%clk 0:00:27]} 21. Bxd8 {[%clk 0:01:43]}  Rxd8 {[%clk 0:00:28]} 22. Rac1 {[%clk 0:01:43]}  Nxd5 {[%clk 0:00:19]} 23. Rxd4 {[%clk 0:01:39]} 1-0


[Site "https://www.chess.com"]

[Event "Titled Tuesday Blitz November 15 Early 2022"]
[White "Sanchez Enriquez, Oscar Gerardo"]
[Black "Durarbayli, Vasif"]
[WhiteFideId "5106311"]
[BlackFideId "13402935"]
[WhiteElo "2375"]
[BlackElo "2586"]
[Result "0-1"]
[Round "01"]
[TimeControl "180+1"]
[Date "2022.11.16"]
[WhiteClock "0:00:05"]
[BlackClock "0:00:47"]

1. e4 {[%clk 0:03:00]}  c5 {[%clk 0:02:57]} 2. c3 {[%clk 0:02:59]}  Nf6 {[%clk 0:02:55]} 3. e5 {[%clk 0:03:00]}  Nd5 {[%clk 0:02:54]} 4. d4 {[%clk 0:03:00]}  cxd4 {[%clk 0:02:55]} 5. Nf3 {[%clk 0:03:01]}  Nc6 {[%clk 0:02:55]} 6. Bc4 {[%clk 0:03:01]}  Nb6 {[%clk 0:02:51]} 7. Bb3 {[%clk 0:03:01]}  d5 {[%clk 0:02:46]} 8. exd6 {[%clk 0:03:01]}  Qxd6 {[%clk 0:02:47]} 9. O-O {[%clk 0:03:02]}  Be6 {[%clk 0:02:41]} 10. Nxd4 {[%clk 0:02:45]}  Nxd4 {[%clk 0:02:37]} 11. cxd4 {[%clk 0:02:45]}  Bxb3 {[%clk 0:02:35]} 12. Qxb3 {[%clk 0:02:46]}  e6 {[%clk 0:02:32]} 13. Nc3 {[%clk 0:02:46]}  Be7 {[%clk 0:02:31]} 14. Be3 {[%clk 0:02:41]}  O-O {[%clk 0:02:27]} 15. Rfd1 {[%clk 0:02:41]}  Rfd8 {[%clk 0:01:53]} 16. Rac1 {[%clk 0:02:39]}  Rac8 {[%clk 0:01:44]} 17. a3 {[%clk 0:01:51]}  h6 {[%clk 0:01:33]} 18. h3 {[%clk 0:01:51]}  Bf6 {[%clk 0:01:25]} 19. Ne4 {[%clk 0:01:47]}  Qe7 {[%clk 0:01:20]} 20. a4 {[%clk 0:01:28]}  Nd5 {[%clk 0:01:16]} 21. Nxf6+ {[%clk 0:01:25]}  Nxf6 {[%clk 0:01:16]} 22. d5 {[%clk 0:01:12]}  Nxd5 {[%clk 0:01:09]} 23. Rxc8 {[%clk 0:01:06]}  Rxc8 {[%clk 0:01:09]} 24. Bxa7 {[%clk 0:01:07]}  Rc6 {[%clk 0:01:04]} 25. Bd4 {[%clk 0:01:05]}  Qc7 {[%clk 0:01:03]} 26. g3 {[%clk 0:00:52]}  Rc1 {[%clk 0:01:00]} 27. Rxc1 {[%clk 0:00:44]}  Qxc1+ {[%clk 0:01:00]} 28. Kg2 {[%clk 0:00:45]}  Qc6 {[%clk 0:01:01]} 29. Kh2 {[%clk 0:00:41]}  f6 {[%clk 0:01:02]} 30. a5 {[%clk 0:00:25]}  Kf7 {[%clk 0:00:59]} 31. Qd3 {[%clk 0:00:21]}  Qa4 {[%clk 0:00:56]} 32. Bc3 {[%clk 0:00:14]}  h5 {[%clk 0:00:56]} 33. Qf3 {[%clk 0:00:09]}  g6 {[%clk 0:00:54]} 34. Qd3 {[%clk 0:00:08]}  h4 {[%clk 0:00:53]} 35. g4 {[%clk 0:00:07]}  Qc6 {[%clk 0:00:51]} 36. Kg1 {[%clk 0:00:07]}  Nf4 {[%clk 0:00:49]} 37. Qf1 {[%clk 0:00:06]}  Qf3 {[%clk 0:00:48]} 38. Kh2 {[%clk 0:00:05]}  Nd3 {[%clk 0:00:48]} 39. Bd4 {[%clk 0:00:05]}  Qf4+ {[%clk 0:00:48]} 40. Kh1 {[%clk 0:00:05]}  Qxd4 {[%clk 0:00:47]} 0-1


[Site "https://www.chess.com"]

[Event "Titled Tuesday Blitz November 15 Early 2022"]
[White "Sanchez, Robert"]
[Black "Darini, Pouria"]
[WhiteFideId "2034360"]
[BlackFideId "12502200"]
[WhiteElo "2286"]
[BlackElo "2483"]
[Result "0-1"]
[Round "01"]
[TimeControl "180+1"]
[Date "2022.11.16"]
[WhiteClock "0:00:33"]
[BlackClock "0:00:19"]

1. e4 {[%clk 0:02:59]}  c5 {[%clk 0:02:59]} 2. Nf3 {[%clk 0:02:58]}  Nc6 {[%clk 0:03:00]} 3. d4 {[%clk 0:02:55]}  cxd4 {[%clk 0:03:00]} 4. Nxd4 {[%clk 0:02:56]}  Nf6 {[%clk 0:03:00]} 5. Nc3 {[%clk 0:02:56]}  d6 {[%clk 0:03:00]} 6. f3 {[%clk 0:02:56]}  e5 {[%clk 0:02:58]} 7. Nb3 {[%clk 0:02:57]}  Be7 {[%clk 0:02:52]} 8. Be3 {[%clk 0:02:56]}  O-O {[%clk 0:02:50]} 9. Qd2 {[%clk 0:02:57]}  a5 {[%clk 0:02:50]} 10. Bb5 {[%clk 0:02:56]}  Na7 {[%clk 0:02:40]} 11. Bxa7 {[%clk 0:02:56]}  Rxa7 {[%clk 0:02:39]} 12. O-O-O {[%clk 0:02:57]}  Be6 {[%clk 0:02:27]} 13. Kb1 {[%clk 0:02:55]}  Qb6 {[%clk 0:02:05]} 14. a4 {[%clk 0:02:54]}  Rc8 {[%clk 0:02:04]} 15. g4 {[%clk 0:02:42]}  Raa8 {[%clk 0:01:56]} 16. h4 {[%clk 0:02:27]}  Kf8 {[%clk 0:01:40]} 17. h5 {[%clk 0:02:27]}  h6 {[%clk 0:01:40]} 18. Rhg1 {[%clk 0:02:18]}  Nh7 {[%clk 0:01:12]} 19. f4 {[%clk 0:02:06]}  exf4 {[%clk 0:01:11]} 20. Qxf4 {[%clk 0:02:02]}  Ng5 {[%clk 0:00:59]} 21. Nd4 {[%clk 0:01:32]}  Bf6 {[%clk 0:00:54]} 22. Nxe6+ {[%clk 0:01:30]}  Nxe6 {[%clk 0:00:53]} 23. Qxd6+ {[%clk 0:01:25]}  Qxd6 {[%clk 0:00:53]} 24. Rxd6 {[%clk 0:01:26]}  Bxc3 {[%clk 0:00:53]} 25. bxc3 {[%clk 0:01:27]}  Rxc3 {[%clk 0:00:49]} 26. Rd7 {[%clk 0:01:17]}  Nc5 {[%clk 0:00:48]} 27. Rd4 {[%clk 0:01:12]}  Re3 {[%clk 0:00:45]} 28. Rf1 {[%clk 0:01:06]}  Rxe4 {[%clk 0:00:42]} 29. Rd5 {[%clk 0:01:04]}  Rc8 {[%clk 0:00:40]} 30. g5 {[%clk 0:00:58]}  hxg5 {[%clk 0:00:38]} 31. Rxg5 {[%clk 0:00:58]}  Ne6 {[%clk 0:00:34]} 32. Rgf5 {[%clk 0:00:56]}  Rc7 {[%clk 0:00:34]} 33. Rd1 {[%clk 0:00:47]}  Rb4+ {[%clk 0:00:34]} 34. Kc1 {[%clk 0:00:44]}  Nd4 {[%clk 0:00:33]} 35. Rf2 {[%clk 0:00:40]}  Nxb5 {[%clk 0:00:32]} 36. axb5 {[%clk 0:00:41]}  Rxb5 {[%clk 0:00:32]} 37. Re2 {[%clk 0:00:41]}  f6 {[%clk 0:00:20]} 38. Rd8+ {[%clk 0:00:38]}  Kf7 {[%clk 0:00:21]} 39. Rh2 {[%clk 0:00:34]}  Rbc5 {[%clk 0:00:19]} 40. Kb2 {[%clk 0:00:34]}  b5 {[%clk 0:00:19]} 41. h6 {[%clk 0:00:33]}  gxh6 {[%clk 0:00:19]} 42. Rxh6 {[%clk 0:00:33]}  Rxc2+ {[%clk 0:00:19]} 0-1


[Site "https://www.chess.com"]

[Event "Titled Tuesday Blitz November 15 Early 2022"]
[White "Santos Flores, Alberto"]
[Black "Lenderman, Aleksandr"]
[WhiteFideId "3601234"]
[BlackFideId "2021285"]
[WhiteElo "2235"]
[BlackElo "2607"]
[Result "0-1"]
[Round "01"]
[TimeControl "180+1"]
[Date "2022.11.15"]
[WhiteClock "0:00:02"]
[BlackClock "0:00:31"]

1. e4 {[%clk 0:02:53]}  g6 {[%clk 0:02:06]} 2. d4 {[%clk 0:02:52]}  Nf6 {[%clk 0:02:05]} 3. e5 {[%clk 0:02:52]}  Nh5 {[%clk 0:02:05]} 4. Nf3 {[%clk 0:02:47]}  d6 {[%clk 0:02:05]} 5. Bc4 {[%clk 0:02:46]}  Bg7 {[%clk 0:02:04]} 6. Qe2 {[%clk 0:02:37]}  Nc6 {[%clk 0:01:55]} 7. c3 {[%clk 0:02:09]}  dxe5 {[%clk 0:01:51]} 8. dxe5 {[%clk 0:02:08]}  O-O {[%clk 0:01:45]} 9. h3 {[%clk 0:02:08]}  Bh8 {[%clk 0:01:23]} 10. O-O {[%clk 0:01:45]}  Ng7 {[%clk 0:01:21]} 11. Rd1 {[%clk 0:01:42]}  Qe8 {[%clk 0:01:21]} 12. Nbd2 {[%clk 0:01:33]}  Be6 {[%clk 0:01:19]} 13. Ne4 {[%clk 0:01:22]}  Rd8 {[%clk 0:01:17]} 14. Bf4 {[%clk 0:01:16]}  Bxc4 {[%clk 0:01:12]} 15. Qxc4 {[%clk 0:01:17]}  Ne6 {[%clk 0:01:12]} 16. Bg3 {[%clk 0:01:18]}  Bg7 {[%clk 0:01:09]} 17. b4 {[%clk 0:01:13]}  Rxd1+ {[%clk 0:01:07]} 18. Rxd1 {[%clk 0:01:13]}  Qc8 {[%clk 0:01:08]} 19. b5 {[%clk 0:01:08]}  Rd8 {[%clk 0:01:08]} 20. Rxd8+ {[%clk 0:01:04]}  Ncxd8 {[%clk 0:01:09]} 21. a4 {[%clk 0:00:57]}  c6 {[%clk 0:01:08]} 22. Qb4 {[%clk 0:00:48]}  Qd7 {[%clk 0:01:05]} 23. Nc5 {[%clk 0:00:40]}  Nxc5 {[%clk 0:00:59]} 24. Qxc5 {[%clk 0:00:40]}  cxb5 {[%clk 0:01:00]} 25. axb5 {[%clk 0:00:40]}  Ne6 {[%clk 0:01:00]} 26. Qxa7 {[%clk 0:00:39]}  Qxb5 {[%clk 0:01:00]} 27. Qb8+ {[%clk 0:00:37]}  Bf8 {[%clk 0:01:00]} 28. Qc8 {[%clk 0:00:28]}  Kg7 {[%clk 0:00:54]} 29. Kh2 {[%clk 0:00:27]}  h5 {[%clk 0:00:52]} 30. c4 {[%clk 0:00:24]}  Qc6 {[%clk 0:00:45]} 31. Qxc6 {[%clk 0:00:23]}  bxc6 {[%clk 0:00:46]} 32. Nd2 {[%clk 0:00:17]}  g5 {[%clk 0:00:45]} 33. f3 {[%clk 0:00:15]}  Kg6 {[%clk 0:00:45]} 34. Bf2 {[%clk 0:00:13]}  Bg7 {[%clk 0:00:45]} 35. Ne4 {[%clk 0:00:11]}  Bxe5+ {[%clk 0:00:45]} 36. Kg1 {[%clk 0:00:12]}  f5 {[%clk 0:00:44]} 37. Nc5 {[%clk 0:00:11]}  Nxc5 {[%clk 0:00:44]} 38. Bxc5 {[%clk 0:00:12]}  Bd6 {[%clk 0:00:44]} 39. Be3 {[%clk 0:00:11]}  g4 {[%clk 0:00:40]} 40. hxg4 {[%clk 0:00:11]}  fxg4 {[%clk 0:00:40]} 41. fxg4 {[%clk 0:00:11]}  hxg4 {[%clk 0:00:41]} 42. Kf2 {[%clk 0:00:11]}  Kf5 {[%clk 0:00:42]} 43. Bb6 {[%clk 0:00:09]}  Ke4 {[%clk 0:00:41]} 44. Ke2 {[%clk 0:00:10]}  Be5 {[%clk 0:00:39]} 45. Bf2 {[%clk 0:00:09]}  Bd4 {[%clk 0:00:39]} 46. Bg3 {[%clk 0:00:10]}  e5 {[%clk 0:00:39]} 47. Bh2 {[%clk 0:00:09]}  Bc5 {[%clk 0:00:38]} 48. Bg3 {[%clk 0:00:08]}  Kd4 {[%clk 0:00:38]} 49. Kd2 {[%clk 0:00:07]}  Bd6 {[%clk 0:00:37]} 50. c5 {[%clk 0:00:06]}  Bxc5 {[%clk 0:00:37]} 51. Bf2+ {[%clk 0:00:03]}  Kd5 {[%clk 0:00:37]} 52. Bg3 {[%clk 0:00:03]}  Bd4 {[%clk 0:00:37]} 53. Bh4 {[%clk 0:00:02]}  c5 {[%clk 0:00:36]} 54. Bg5 {[%clk 0:00:03]}  c4 {[%clk 0:00:36]} 55. Kc2 {[%clk 0:00:02]}  e4 {[%clk 0:00:36]} 56. Kd2 {[%clk 0:00:02]}  c3+ {[%clk 0:00:36]} 57. Kc2 {[%clk 0:00:03]}  Kc4 {[%clk 0:00:36]} 58. Bh6 {[%clk 0:00:02]}  e3 {[%clk 0:00:36]} 59. Bg5 {[%clk 0:00:03]}  e2 {[%clk 0:00:37]} 60. Bh4 {[%clk 0:00:03]}  Be5 {[%clk 0:00:30]} 61. Be1 {[%clk 0:00:04]}  g3 {[%clk 0:00:30]} 62. Kc1 {[%clk 0:00:02]}  Kd3 {[%clk 0:00:30]} 63. Kb1 {[%clk 0:00:02]}  c2+ {[%clk 0:00:30]} 64. Kc1 {[%clk 0:00:02]}  Bf4+ {[%clk 0:00:31]} 0-1


[Site "https://www.chess.com"]